fUST/lending_fUST_20250611
["ID","MTS","AMOUNT","RATE_DAILY","PERIOD"]
[365278235,1749574240549,-460.0,0.00021917,4]
[365278236,1749574240558,-460.0,0.00021917,4]
[365278237,1749574240567,-559.68,0.00021917,4]
[365278238,1749574240576,-460.0,0.00021917,4]
[365278239,1749574240585,-460.0,0.00021917,4]
[365278240,1749574240594,-767.4,0.00021917,4]
[365278241,1749574240603,-539.38036688,0.00021917,4]
[365278242,1749574240613,-602.66,0.00021917,4]
[365278243,1749574240622,-460.0,0.00021917,4]
[365278244,1749574240631,-1135.0,0.00021917,4]
[365278245,1749574240640,-712.88,0.00021917,4]
[365278246,1749574240648,-460.0,0.00021917,4]
[365278247,1749574240658,-460.0,0.00021917,4]
[365278248,1749574240667,-460.0,0.00021917,2]
[365278249,1749574240678,-592.36,0.00021917,4]
[365278250,1749574240687,-617.71,0.00021917,4]
[365278251,1749574240695,-985.94,0.00021917,4]
[365278252,1749574240705,-983.74,0.00021917,4]
[365278253,1749574240713,-460.0,0.00021917,4]
[365278254,1749574240724,-1146.22,0.00021917,4]
[365278255,1749574240734,-544.99,0.00021917,4]
[365278256,1749574240743,-1423.35,0.00021917,4]
[365278257,1749574240752,-460.0,0.00021917,4]
[365278259,1749574240761,-460.0,0.00021917,4]
[365278260,1749574240771,-875.11,0.00021917,4]
[365278262,1749574240780,-1243.9,0.00021917,4]
[365278263,1749574240788,-1008.16,0.00021917,4]
[365278264,1749574240798,-460.0,0.00021917,4]
[365278266,1749574240807,-460.0,0.00021917,4]
[365278268,1749574240816,-482.14,0.00021917,4]
[365278270,1749574240825,-460.0,0.00021917,4]
[365278272,1749574240834,-460.0,0.00021917,4]
[365278274,1749574240844,-500.0,0.00021941,2]
[365278276,1749574240853,-687.62,0.00022027,3]
[365278279,1749574240863,-1000.0,0.00022037,2]
[365278281,1749574240872,-186.32093108,0.00022091,2]
[365278283,1749574240882,-500.0,0.00022092,2]
[365278285,1749574240891,-361.75999374,0.00022191,4]
[365278287,1749574240902,-529.02406173,0.00022191,4]
[365278288,1749574240911,-460.0,0.00022191,4]
[365278290,1749574240920,-659.32,0.00022191,4]
[365278292,1749574240929,-556.71,0.00022191,4]
[365278294,1749574240938,-460.0,0.00022191,4]
[365278296,1749574240948,-460.0,0.00022191,4]
[365278298,1749574240957,-580.0,0.00022191,4]
[365278300,1749574240966,-460.0,0.00022191,4]
[365278302,1749574240976,-559.68,0.00022191,4]
[365278304,1749574240986,-460.0,0.00022191,4]
[365278306,1749574240995,-767.4,0.00022191,4]
[365278308,1749574241006,-602.66,0.00022191,4]
[365278310,1749574241015,-460.0,0.00022191,4]
[365278313,1749574241024,-1135.0,0.00022191,4]
[365278315,1749574241034,-712.88,0.00022191,4]
[365278317,1749574241047,-460.0,0.00022191,4]
[365278319,1749574241056,-460.0,0.00022191,4]
[365278321,1749574241066,-460.0,0.00022191,2]
[365278323,1749574241075,-592.36,0.00022191,4]
[365278325,1749574241085,-617.71,0.00022191,4]
[365278327,1749574241094,-985.94,0.00022191,4]
[365278329,1749574241103,-983.74,0.00022191,4]
[365278331,1749574241112,-221.6037852,0.00022191,4]
[365278333,1749574241122,-1146.22,0.00022191,4]
[365278335,1749574241132,-544.99,0.00022191,4]
[365278337,1749574241141,-1423.35,0.00022191,4]
[365278339,1749574241150,-460.0,0.00022191,4]
[365278341,1749574241159,-875.11,0.00022191,4]
[365278344,1749574241172,-1243.9,0.00022191,4]
[365278346,1749574241182,-1008.16,0.00022191,4]
[365278348,1749574241191,-460.0,0.00022191,4]
[365278350,1749574241201,-460.0,0.00022191,4]
[365278352,1749574241210,-482.14,0.00022191,4]
[365278354,1749574241219,-460.0,0.00022191,4]
[365278356,1749574241228,-460.0,0.00022191,4]
[365278358,1749574241237,-72420.81,0.000222,7]
[365278360,1749574241246,-451.70230734,0.000224,2]
[365278361,1749574241256,-504.45699682,0.00022428,2]
[365278362,1749574241266,-10.01470496,0.00022449,2]
[365278363,1749574241345,-219.66458734,0.00022449,2]
[365278364,1749574241355,-213.1263252,0.00022449,2]
[365278365,1749574241364,-842.5625,0.00022449,2]
[365278366,1749574241373,-160.0,0.00022449,2]
[365278367,1749574241382,-160.0,0.00022449,2]
[365278368,1749574241391,-160.0,0.00022456,2]
[365278369,1749574241402,-460.0,0.00022465,4]
[365278370,1749574241411,-659.32,0.00022465,4]
[365278371,1749574241421,-556.71,0.00022465,4]
[365278372,1749574241430,-530.98,0.00022465,4]
[365278373,1749574241439,-460.0,0.00022465,4]
[365278374,1749574241449,-460.0,0.00022465,4]
[365278375,1749574241459,-559.68,0.00022465,4]
[365278376,1749574241470,-460.0,0.00022465,4]
[365278377,1749574241480,-767.4,0.00022465,4]
[365278378,1749574241489,-602.66,0.00022465,4]
[365278379,1749574241499,-460.0,0.00022465,4]
[365278380,1749574241509,-1135.0,0.00022465,4]
[365278381,1749574241518,-712.88,0.00022465,4]
[365278382,1749574241527,-460.0,0.00022465,4]
[365278383,1749574241537,-460.0,0.00022465,4]
[365278384,1749574241547,-460.0,0.00022465,2]
[365278385,1749574241556,-592.36,0.00022465,4]
[365278386,1749574241566,-617.71,0.00022465,4]
[365278387,1749574241575,-985.94,0.00022465,4]
[365278388,1749574241694,-983.74,0.00022465,4]
[365278389,1749574241704,-1146.22,0.00022465,4]
[365278390,1749574241715,-544.99,0.00022465,4]
[365278391,1749574241727,-1423.35,0.00022465,4]
[365278392,1749574241737,-460.0,0.00022465,4]
[365278393,1749574241746,-875.11,0.00022465,4]
[365278394,1749574241758,-628.00772788,0.00022465,4]
[365278395,1749574241772,-538.8155538,0.00022465,4]
[365278397,1749574241784,-77.07671832,0.00022465,4]
[365278399,1749574241794,-1008.16,0.00022465,4]
[365278401,1749574241803,-460.0,0.00022465,4]
[365278403,1749574241813,-460.0,0.00022465,4]
[365278405,1749574241823,-482.14,0.00022465,4]
[365278407,1749574241833,-460.0,0.00022465,4]
[365278409,1749574241842,-460.0,0.00022465,4]
[365278411,1749574241851,-500.0,0.00022585,2]
[365278413,1749574241861,-460.0,0.00022739,4]
[365278415,1749574241870,-659.32,0.00022739,4]
[365278416,1749574241880,-556.71,0.00022739,4]
[365278418,1749574241889,-460.0,0.00022739,4]
[365278420,1749574241898,-460.0,0.00022739,4]
[365278422,1749574241907,-559.68,0.00022739,4]
[365278424,1749574241917,-460.0,0.00022739,4]
[365278426,1749574241926,-767.4,0.00022739,4]
[365278428,1749574241936,-602.66,0.00022739,4]
[365278430,1749574241945,-431.6,0.00022739,4]
[365278432,1749574241955,-1135.0,0.00022739,4]
[365278434,1749574241964,-712.88,0.00022739,4]
[365278436,1749574241973,-460.0,0.00022739,4]
[365278438,1749574241983,-460.0,0.00022739,4]
[365278440,1749574241992,-460.0,0.00022739,2]
[365278442,1749574242001,-592.36,0.00022739,4]
[365278444,1749574242010,-617.71,0.00022739,4]
[365278446,1749574242019,-985.94,0.00022739,4]
[365278448,1749574242029,-983.74,0.00022739,4]
[365278450,1749574242038,-1146.22,0.00022739,4]
[365278452,1749574242048,-544.99,0.00022739,4]
[365278454,1749574242059,-1423.35,0.00022739,4]
[365278456,1749574242068,-460.0,0.00022739,4]
[365278458,1749574242078,-875.11,0.00022739,4]
[365278460,1749574242087,-1243.9,0.00022739,4]
[365278462,1749574242097,-1008.16,0.00022739,4]
[365278464,1749574242106,-460.0,0.00022739,4]
[365278466,1749574242115,-460.0,0.00022739,4]
[365278468,1749574242124,-482.14,0.00022739,4]
[365278470,1749574242134,-460.0,0.00022739,4]
[365278472,1749574242143,-367.39,0.00022739,4]
[365278474,1749574242153,-2134.26,0.00022767,2]
[365278476,1749574242162,-172.328352,0.00022823,2]
[365278478,1749574242171,-160.0,0.00022868,2]
[365278479,1749574242180,-424.12530924,0.00022868,2]
[365278481,1749574242189,-469.06,0.000229,7]
[365278483,1749574242198,-296.0,0.00022943,2]
[365278485,1749574242207,-420.0,0.00022943,2]
[365278487,1749574242216,-6364.68266219,0.0002295,7]
[365278489,1749574242225,-6364.68266219,0.0002295,7]
[365278491,1749574242234,-838.08612033,0.00023,2]
[365278494,1749574242247,-1966.18707118,0.00023,2]
[365278498,1749574242282,-2220.0,0.00023,2]
[365278500,1749574242293,-320.17165751,0.00023,2]
[365278502,1749574242305,-32503.89515098,0.00023,2]
[365278504,1749574242314,-314.47,0.00023013,4]
[365278506,1749574242323,-659.32,0.00023013,4]
[365278508,1749574242333,-556.71,0.00023013,4]
[365278510,1749574242343,-460.0,0.00023013,4]
[365278513,1749574242355,-559.68,0.00023013,4]
[365278515,1749574242365,-460.0,0.00023013,4]
[365278517,1749574242386,-460.0,0.00023013,4]
[365278518,1749574242399,-767.4,0.00023013,4]
[365278520,1749574242409,-602.66,0.00023013,4]
[365278522,1749574242418,-1135.0,0.00023013,4]
[365278524,1749574242428,-712.88,0.00023013,4]
[365278526,1749574242437,-460.0,0.00023013,4]
[365278528,1749574242446,-460.0,0.00023013,4]
[365278530,1749574242456,-460.0,0.00023013,2]
[365278532,1749574242466,-592.36,0.00023013,4]
[365278534,1749574242475,-617.71,0.00023013,4]
[365278537,1749574242485,-985.94,0.00023013,4]
[365278539,1749574242495,-983.74,0.00023013,4]
[365278540,1749574242504,-1146.22,0.00023013,4]
[365278543,1749574242514,-544.99,0.00023013,4]
[365278545,1749574242524,-1423.35,0.00023013,4]
[365278547,1749574242534,-460.0,0.00023013,4]
[365278549,1749574242543,-875.11,0.00023013,4]
[365278552,1749574242553,-1243.9,0.00023013,4]
[365278555,1749574242562,-1008.16,0.00023013,4]
[365278557,1749574242572,-460.0,0.00023013,4]
[365278560,1749574242581,-460.0,0.00023013,4]
[365278562,1749574242590,-482.14,0.00023013,4]
[365278565,1749574242599,-460.0,0.00023013,4]
[365278567,1749574242609,-5000.0,0.00023151,2]
[365278568,1749574242618,-207.4,0.00023151,2]
[365278571,1749574242626,-500.0,0.00023208,2]
[365278573,1749574242636,-500.0,0.00023221,2]
[365278575,1749574242645,-151.0,0.00023232,4]
[365278576,1749574242655,-205.16095159,0.00023232,4]
[365278577,1749574242665,-151.0,0.00023232,4]
[365278579,1749574242675,-500.0,0.00023232,4]
[365278581,1749574242686,-151.0,0.00023232,4]
[365278583,1749574242696,-500.0,0.00023232,4]
[365278585,1749574242705,-500.0,0.00023232,4]
[365278588,1749574242715,-151.0,0.00023232,4]
[365278590,1749574242725,-198.0,0.00023232,4]
[365278592,1749574242735,-500.0,0.00023232,4]
[365278594,1749574242744,-151.81095745,0.00023232,4]
[365278596,1749574242757,-151.0,0.00023232,4]
[365278598,1749574242766,-151.0,0.00023232,4]
[365278600,1749574242776,-151.0,0.00023259,4]
[365278602,1749574242786,-151.0,0.00023259,4]
[365278604,1749574242796,-500.0,0.00023259,4]
[365278607,1749574242806,-500.0,0.00023259,4]
[365278609,1749574242815,-500.0,0.00023259,4]
[365278611,1749574242825,-205.80618261,0.00023259,4]
[365278613,1749574242835,-500.0,0.00023259,4]
[365278615,1749574242844,-151.0,0.00023259,4]
[365278617,1749574242854,-245.0,0.00023287,4]
[365278619,1749574242863,-500.0,0.00023287,4]
[365278621,1749574242873,-500.0,0.00023287,4]
[365278623,1749574242882,-500.0,0.00023287,4]
[365278625,1749574242892,-503.15818704,0.00023287,4]
[365278627,1749574242901,-151.0,0.00023287,4]
[365278629,1749574242910,-659.32,0.00023287,4]
[365278630,1749574242919,-556.71,0.00023287,4]
[365278632,1749574242929,-460.0,0.00023287,4]
[365278634,1749574242939,-559.68,0.00023287,4]
[365278636,1749574242948,-165.77107111,0.00023287,4]
[365278638,1749574242957,-460.0,0.00023287,4]
[365278640,1749574242965,-767.4,0.00023287,4]
[365278642,1749574242975,-602.66,0.00023287,4]
[365278644,1749574242984,-1135.0,0.00023287,4]
[365278646,1749574242993,-712.88,0.00023287,4]
[365278648,1749574243002,-460.0,0.00023287,4]
[365278650,1749574243012,-460.0,0.00023287,4]
[365278652,1749574243021,-460.0,0.00023287,2]
[365278654,1749574243030,-592.36,0.00023287,4]
[365278656,1749574243040,-617.71,0.00023287,4]
[365278658,1749574243049,-985.94,0.00023287,4]
[365278659,1749574243059,-983.74,0.00023287,4]
[365278661,1749574243067,-950.69813123,0.00023287,4]
[365278670,1749574243149,-195.52186877,0.00023287,4]
[365278672,1749574243158,-544.99,0.00023287,4]
[365278674,1749574243169,-1423.35,0.00023287,4]
[365278676,1749574243191,-460.0,0.00023287,4]
[365278678,1749574243201,-875.11,0.00023287,4]
[365278680,1749574243211,-1243.9,0.00023287,4]
[365278683,1749574243220,-1008.16,0.00023287,4]
[365278685,1749574243229,-460.0,0.00023287,4]
[365278687,1749574243239,-460.0,0.00023287,4]
[365278689,1749574243248,-482.14,0.00023287,4]
[365278691,1749574243258,-460.0,0.00023287,4]
[365278693,1749574243267,-1132.0,0.00023289,7]
[365278695,1749574243276,-500.0,0.00023314,4]
[365278697,1749574243285,-500.0,0.00023314,4]
[365278699,1749574243294,-500.0,0.00023314,4]
[365278701,1749574243304,-151.0,0.00023314,4]
[365278703,1749574243313,-500.0,0.00023342,4]
[365278705,1749574243322,-500.0,0.00023342,4]
[365278707,1749574243332,-302.0,0.00023342,4]
[365278709,1749574243342,-151.0,0.00023342,4]
[365278711,1749574243351,-235.31774589,0.00023369,4]
[365278713,1749574243360,-1015.25,0.000234,7]
[365278715,1749574243369,-4024.11205715,0.000234,7]
[365278717,1749574243380,-1146.814,0.000234,7]
[365278719,1749574243391,-32207.14770537,0.000234,7]
[365278981,1749574246073,-460.0,0.00021095,4]
[365278983,1749574246083,-460.0,0.00021369,4]
[365278985,1749574246092,-460.0,0.00021643,4]
[365278987,1749574246102,-460.0,0.00021917,4]
[365278989,1749574246111,-460.0,0.00022191,4]
[365278991,1749574246120,-460.0,0.00022465,4]
[365278993,1749574246130,-460.0,0.00022739,4]
[365278995,1749574246139,-35042.73623748,0.000234,7]
[365278997,1749574246148,-460.0,0.00023561,4]
[365278999,1749574246158,-559.68,0.00023561,4]
[365279001,1749574246168,-460.0,0.00023561,4]
[365279003,1749574246178,-767.4,0.00023561,4]
[365279005,1749574246187,-602.66,0.00023561,4]
[365279007,1749574246197,-1135.0,0.00023561,4]
[365279009,1749574246206,-712.88,0.00023561,4]
[365279011,1749574246215,-460.0,0.00023561,4]
[365279013,1749574246225,-460.0,0.00023561,4]
[365279015,1749574246234,-205.28057827,0.00023561,2]
[365279017,1749574246243,-592.36,0.00023561,4]
[365279019,1749574246254,-617.71,0.00023561,4]
[365279021,1749574246263,-985.94,0.00023561,4]
[365279023,1749574246273,-983.74,0.00023561,4]
[365279025,1749574246283,-1146.22,0.00023561,4]
[365279027,1749574246293,-544.99,0.00023561,4]
[365279029,1749574246302,-1423.35,0.00023561,4]
[365279031,1749574246312,-460.0,0.00023561,4]
[365279033,1749574246321,-875.11,0.00023561,4]
[365279035,1749574246330,-1243.9,0.00023561,4]
[365279037,1749574246340,-1008.16,0.00023561,4]
[365279039,1749574246348,-460.0,0.00023561,4]
[365279041,1749574246358,-460.0,0.00023561,4]
[365279043,1749574246367,-482.14,0.00023561,4]
[365279045,1749574246377,-460.0,0.00023561,4]
[365279047,1749574246386,-1814.87,0.000236,2]
[365279049,1749574246396,-5000.0,0.00023699,2]
[365279050,1749574246406,-1132.0,0.00023708,2]
[365279051,1749574246415,-599.65496713,0.00023757,2]
[365279052,1749574246428,-2246.02503287,0.00023757,2]
[365279053,1749574246436,-500.0,0.00023769,2]
[365279055,1749574246446,-460.0,0.00023835,4]
[365279057,1749574246455,-559.68,0.00023835,4]
[365279059,1749574246464,-460.0,0.00023835,4]
[365279061,1749574246473,-767.4,0.00023835,4]
[365279063,1749574246482,-602.66,0.00023835,4]
[365279065,1749574246493,-1135.0,0.00023835,4]
[365279067,1749574246503,-712.88,0.00023835,4]
[365279069,1749574246512,-460.0,0.00023835,4]
[365279071,1749574246522,-188.27,0.00023835,4]
[365279073,1749574246531,-592.36,0.00023835,4]
[365279075,1749574246540,-617.71,0.00023835,4]
[365279077,1749574246549,-985.94,0.00023835,4]
[365279079,1749574246558,-983.74,0.00023835,4]
[365279081,1749574246568,-1146.22,0.00023835,4]
[365279083,1749574246577,-544.99,0.00023835,4]
[365279085,1749574246587,-1423.35,0.00023835,4]
[365279087,1749574246596,-460.0,0.00023835,4]
[365279089,1749574246605,-875.11,0.00023835,4]
[365279091,1749574246615,-1243.9,0.00023835,4]
[365279093,1749574246625,-1008.16,0.00023835,4]
[365279095,1749574246634,-460.0,0.00023835,4]
[365279097,1749574246643,-460.0,0.00023835,4]
[365279099,1749574246653,-482.14,0.00023835,4]
[365279101,1749574246662,-460.0,0.00023835,4]
[365279103,1749574246671,-26337.6668,0.00024,30]
[365279105,1749574246685,-229.6792923,0.00024,7]
[365279107,1749574246695,-315.18454239,0.00024,30]
[365279109,1749574246705,-963.0,0.00024058,2]
[365279111,1749574246714,-2160.0,0.00024058,2]
[365279113,1749574246725,-653.0,0.00024058,2]
[365279115,1749574246734,-209.204,0.00024058,2]
[365279117,1749574246743,-33798.24198849,0.000241,2]
[365279119,1749574246755,-1987.03867788,0.000241,2]
[365279182,1749574503130,7905.0,0.000172,2]
[365279183,1749574702076,215.222275,0.00013699,2]
[365279261,1749575432278,-301.13487156,0.000189,2]
[365279263,1749575432288,-666.0,0.00019185,2]
[365279265,1749575432297,-169.30264,0.00019289,2]
[365279267,1749575432307,-432.6808908,0.00019897,2]
[365279269,1749575432316,-183.12,0.00020035,2]
[365279271,1749575432325,-300.0,0.00020044,2]
[365279273,1749575432334,-300.0,0.00020044,2]
[365279275,1749575432343,-300.0,0.00020044,2]
[365279277,1749575432353,-300.0,0.00020044,2]
[365279279,1749575432362,-1200.0,0.00020044,2]
[365279281,1749575432371,-16352.94045492,0.00020045,2]
[365279283,1749575432380,-15586.92240902,0.00020045,2]
[365279285,1749575432392,-9313.07759098,0.00020045,2]
[365279287,1749575432401,-215.222275,0.00020187,2]
[365279289,1749575432410,-181.16,0.00020383,2]
[365279291,1749575432420,-182.50614498,0.00020462,2]
[365279293,1749575432429,-164.9101268,0.00020724,2]
[365279295,1749575432438,-500.0,0.00020724,2]
[365279297,1749575432447,-500.0,0.00020724,2]
[365279299,1749575432459,-5362.8591034,0.00020725,2]
[365279301,1749575432468,-500.0,0.00021016,2]
[365279303,1749575432477,-500.0,0.00021073,2]
[365279305,1749575432487,-160.0,0.00021094,2]
[365279307,1749575432497,-359.6697,0.00021095,4]
[365279309,1749575432506,-536.80791853,0.00021095,4]
[365279311,1749575432516,-382.77796731,0.00021095,4]
[365279313,1749575432526,-430.0,0.00021095,4]
[365279315,1749575432538,-440.0,0.00021095,4]
[365279317,1749575432548,-460.0,0.00021095,4]
[365279319,1749575432557,-430.0,0.00021095,4]
[365279321,1749575432567,-430.0,0.00021095,4]
[365279323,1749575432576,-460.0,0.00021095,4]
[365279325,1749575432586,-430.0,0.00021095,4]
[365279327,1749575432596,-522.02060256,0.00021095,4]
[365279329,1749575432605,-430.0,0.00021095,4]
[365279331,1749575432615,-430.0,0.00021095,4]
[365279334,1749575432624,-430.0,0.00021095,4]
[365279338,1749575432634,-430.0,0.00021095,4]
[365279341,1749575432643,-460.0,0.00021095,4]
[365279344,1749575432652,-430.0,0.00021095,4]
[365279347,1749575432662,-430.0,0.00021095,4]
[365279349,1749575432671,-460.0,0.00021095,4]
[365279351,1749575432680,-460.0,0.00021095,4]
[365279352,1749575432688,-460.0,0.00021095,4]
[365279354,1749575432698,-460.0,0.00021095,4]
[365279356,1749575432708,-440.0,0.00021095,4]
[365279375,1749575432872,-430.0,0.00021095,4]
[365279378,1749575432883,-460.0,0.00021095,4]
[365279380,1749575432892,-430.0,0.00021095,4]
[365279382,1749575432902,-440.0,0.00021095,4]
[365279384,1749575432911,-460.0,0.00021095,4]
[365279386,1749575432921,-460.0,0.00021095,4]
[365279387,1749575432931,-460.0,0.00021095,4]
[365279390,1749575432942,-460.0,0.00021095,4]
[365279392,1749575432952,-460.0,0.00021095,4]
[365279394,1749575432963,-230.0,0.00021095,4]
[365279396,1749575432972,-460.0,0.00021095,4]
[365279398,1749575432981,-430.0,0.00021095,4]
[365279400,1749575432991,-460.0,0.00021095,4]
[365279402,1749575433000,-275.13309956,0.00021095,4]
[365279404,1749575433009,-430.0,0.00021095,4]
[365279406,1749575433019,-490.0,0.00021095,4]
[365279408,1749575433029,-460.0,0.00021095,4]
[365279410,1749575433039,-306.92071621,0.00021095,4]
[365279412,1749575433048,-460.0,0.00021095,4]
[365279414,1749575433058,-430.0,0.00021095,4]
[365279416,1749575433068,-440.0,0.00021095,4]
[365279418,1749575433078,-460.0,0.00021095,4]
[365279420,1749575433089,-380.0,0.00021095,4]
[365279422,1749575433099,-460.0,0.00021095,4]
[365279424,1749575433109,-460.0,0.00021095,4]
[365279426,1749575433120,-460.0,0.00021095,4]
[365279428,1749575433130,-460.0,0.00021095,4]
[365279430,1749575433140,-460.0,0.00021095,4]
[365279432,1749575433149,-350.0,0.00021095,4]
[365279434,1749575433160,-460.0,0.00021095,4]
[365279436,1749575433170,-460.0,0.00021095,4]
[365279438,1749575433180,-460.0,0.00021095,4]
[365279440,1749575433189,-430.0,0.00021095,4]
[365279442,1749575433199,-320.0,0.00021095,4]
[365279444,1749575433211,-460.0,0.00021095,4]
[365279446,1749575433221,-512.15,0.00021095,4]
[365279448,1749575433231,-460.0,0.00021095,4]
[365279450,1749575433240,-100.08336654,0.00021095,4]
[365279550,1749575438407,-359.91663346,0.00021095,4]
[365279551,1749575438416,-440.0,0.00021095,4]
[365279552,1749575438425,-477.86246572,0.00021095,4]
[365279553,1749575438434,-558.61,0.00021095,4]
[365279554,1749575438443,-460.0,0.00021095,4]
[365279555,1749575438453,-460.0,0.00021095,4]
[365279556,1749575438462,-460.0,0.00021095,4]
[365279557,1749575438471,-460.0,0.00021095,4]
[365279558,1749575438480,-460.0,0.00021095,4]
[365279559,1749575438489,-170.0,0.00021095,4]
[365279560,1749575438498,-460.0,0.00021095,4]
[365279561,1749575438507,-460.0,0.00021095,4]
[365279562,1749575438517,-460.0,0.00021095,4]
[365279563,1749575438527,-460.0,0.00021095,4]
[365279564,1749575438536,-460.0,0.00021095,4]
[365279565,1749575438545,-460.0,0.00021095,4]
[365279566,1749575438555,-430.0,0.00021095,4]
[365279567,1749575438564,-460.0,0.00021095,4]
[365279568,1749575438574,-668.71,0.00021095,4]
[365279569,1749575438584,-524.59,0.00021095,4]
[365279570,1749575438594,-460.0,0.00021095,4]
[365279571,1749575438603,-460.0,0.00021095,4]
[365279572,1749575438612,-288.15995988,0.00021095,4]
[365279573,1749575438622,-942.26,0.00021095,4]
[365279574,1749575438631,-1611.82,0.00021095,4]
[365279575,1749575438640,-460.0,0.00021095,4]
[365279576,1749575438650,-440.0,0.00021095,4]
[365279577,1749575438659,-280.0,0.00021095,4]
[365279578,1749575438668,-460.0,0.00021095,4]
[365279579,1749575438677,-460.0,0.00021095,4]
[365279580,1749575438687,-430.0,0.00021095,4]
[365279581,1749575438696,-460.0,0.00021095,4]
[365279582,1749575438706,-460.0,0.00021095,4]
[365279583,1749575438715,-530.14,0.00021095,4]
[365279584,1749575438724,-636.29,0.00021095,4]
[365279585,1749575438734,-460.0,0.00021095,4]
[365279586,1749575438743,-430.0,0.00021095,4]
[365279587,1749575438752,-460.0,0.00021095,4]
[365279588,1749575438762,-440.0,0.00021095,4]
[365279589,1749575438771,-210.12001961,0.00021095,4]
[365279590,1749575438781,-460.0,0.00021095,4]
[365279591,1749575438791,-460.0,0.00021095,4]
[365279592,1749575438800,-430.0,0.00021095,4]
[365279593,1749575438809,-460.0,0.00021095,4]
[365279594,1749575438819,-430.0,0.00021095,4]
[365279595,1749575438828,-588.0,0.00021095,4]
[365279596,1749575438838,-460.0,0.00021095,4]
[365279597,1749575438847,-460.0,0.00021095,2]
[365279598,1749575438857,-460.0,0.00021095,4]
[365279599,1749575438867,-460.0,0.00021095,4]
[365279600,1749575438876,-460.0,0.00021095,4]
[365279601,1749575438885,-460.0,0.00021095,4]
[365279602,1749575438895,-460.0,0.00021095,4]
[365279603,1749575438905,-430.0,0.00021095,4]
[365279604,1749575438914,-460.0,0.00021095,4]
[365279605,1749575438923,-430.0,0.00021095,4]
[365279606,1749575438933,-460.0,0.00021095,4]
[365279607,1749575438943,-1018.16,0.00021095,4]
[365279608,1749575438952,-502.15,0.00021095,4]
[365279609,1749575438962,-430.0,0.00021095,4]
[365279610,1749575438972,-1072.99,0.00021095,4]
[365279611,1749575438983,-460.0,0.00021095,4]
[365279612,1749575438993,-1214.31,0.00021095,4]
[365279613,1749575439002,-460.0,0.00021095,4]
[365279614,1749575439012,-230.49067932,0.00021095,4]
[365279615,1749575439022,-430.0,0.00021095,4]
[365279616,1749575439035,-430.0,0.00021095,4]
[365279617,1749575439047,-430.0,0.00021095,4]
[365279618,1749575439060,-460.0,0.00021095,4]
[365279619,1749575439073,-460.0,0.00021095,4]
[365279620,1749575439088,-460.0,0.00021095,4]
[365279621,1749575439101,-430.0,0.00021095,4]
[365279622,1749575439114,-1387.6,0.00021095,4]
[365279623,1749575439124,-460.0,0.00021095,4]
[365279624,1749575439134,-460.0,0.00021095,4]
[365279625,1749575439144,-460.0,0.00021095,4]